Cogmind - Beta 15 @@@ ROGUE MODE // 2025.06.03 @ 23:14:51 Player: HSFM Result: Destroyed by G-47 Trooper with Particle Gun Performance ------------- Evolutions (0) 0 Regions Visited (1) 200 Robots Destroyed (9) 45 Value Destroyed (148) 148 Prototype IDs (0) 0 Alien Tech Used (0) 0 Bonus (0) 0 TOTAL SCORE: 393 Bonus ------- None Cogmind --------- Core Integrity 0/250 Matter 295/300 Energy 100/100 System Corruption 0% Temperature Cool (9) Movement Core (150) Ox2 Location -10/Materials Parts ------- > --- POWER (1) -------- (None) > --- PROPULSION (2) --- (None) > --- UTILITY (2) ------ Small Storage Unit Seismic Detector > --- WEAPON (2) ------- Hammer > --- INVENTORY (8) ---- Aluminum Leg Light Assault Rifle Datajack Mining Laser Peak State ------------ > --- POWER ------------ Light Ion Engine > --- PROPULSION ------- Aluminum Leg Aluminum Leg > --- UTILITY ---------- Small Storage Unit Seismic Detector > --- WEAPON ----------- Small Laser Light Assault Rifle > --- INVENTORY -------- Mining Laser [Rating: 7] Favorites ----------- Power Light Ion Engine Engine Light Ion Engine Propulsion Aluminum Leg Leg Aluminum Leg Utility Small Storage Unit Device Seismic Detector Storage Small Storage Unit Weapon Small Laser Energy Gun Small Laser Ballistic Gun Light Assault Rifle Impact Weapon Hammer Build | -11 -10 ------- Run | Yrd Mat Slots Evolved . | . . Power . | . . Propulsion . | . . Utility . | . . Weapon . | . . Parts Attached 9 | 7 2 Power 1 | 1 . Engine 1 | 1 . Core . | . . Reactor . | . . Propulsion 2 | 2 . Treads . | . . Leg 2 | 2 . Wheel . | . . Hover . | . . Flight . | . . Utility 2 | 2 . Device 1 | 1 . Storage 1 | 1 . Processor . | . . Hackware . | . . Protection . | . . Artifact . | . . Weapon 4 | 2 2 Energy Gun 2 | 1 1 Energy Cannon . | . . Ballistic Gun 1 | 1 . Ballistic Cannon . | . . Launcher . | . . Special Weapon . | . . Impact Weapon 1 | . 1 Slashing Weapon . | . . Piercing Weapon . | . . Special Melee Weapon . | . . Unidentified Prototypes . | . . Parts Lost 5 | . 5 Power 1 | . 1 Propulsion 2 | . 2 Utility . | . . Weapon 2 | . 2 Highest Loss Streak 3 | . 3 To Critical Strikes . | . . Average Backups 1 | . 1 Power . | . . Propulsion . | . . Utility . | . . Weapon 1 | . 1 Tool/Special . | . . Unused Backups 3 | . 3 Power . | . . Propulsion 1 | . 1 Utility . | . . Weapon 1 | . 1 Tool/Special 1 | . 1 Average Slot Usage (%) 91 | . 91 Engine 11 | . 11 Leg 25 | . 25 Device 14 | . 14 Storage 14 | . 14 Energy Gun 15 | . 15 Ballistic Gun 9 | . 9 Peak Build Rating 7 | 7 7 Average Rating 6 | 4 6 On Entrance 3 | . 7 Naked Turns . | . . Heaviest Build 11 | 11 11 Greatest Support 20 | 20 20 Greatest Overweight (x) 2 | . 2 Average Overweight (x) . | . . Largest Inventory Capacity 8 | 8 8 Average Capacity 7 | 7 8 Most Carried 5 | 2 5 Average Carried 1 | . 1 Final Capacity 8 | 8 8 Final Carried 4 | 1 4 Class Distribution -------------------- 100% | Mutant Dominant Class ---------------- Mutant | -10/Materials Resources | -11 -10 ----------- Run | Yrd Mat Matter Collected 291 | 213 78 Remotely . | . . Salvage Created 221 | 35 186 Parts 18 | 2 16 Haulers Intercepted 1 | . 1 Recyclers Shooed . | . . Parts Field Recycled . | . . Retrieved Matter . | . . Parts Self-Destructed . | . . Prevented . | . . Kills | -11 -10 ------- Run | Yrd Mat Combat Hostiles Destroyed 6 | . 6 Guns 5 | . 5 Classes Destroyed 4 | 1 3 Tunneler 2 | 2 . Hauler 1 | . 1 Swarmer 3 | . 3 Grunt 3 | . 3 Best Kill Streak 2 | 2 2 Combat Bots Only 2 | . 2 Max Kills in Single Turn 1 | 1 1 Gunslinging . | . . Exploded . | . . Melee . | . . Uniques/NPCs Destroyed . | . . Combat | -11 -10 -------- Run | Yrd Mat Hostile Shots Fired 81 | . 81 Missed 24 | . 24 Hits 57 | . 57 Projectile 57 | . 57 Critical Strikes 1 | . 1 Damage Taken 683 | . 683 Core 251 | . 251 Absorbed by Shields . | . . Core Remaining (%) 100 | 100 . Volleys Fired 30 | 2 28 Largest 2 | 2 2 Hottest 80 | 60 80 Shots Fired 51 | 4 47 Gun 51 | 4 47 Cannon . | . . Launcher . | . . Special . | . . Kinetic 17 | 2 15 Thermal 34 | 2 32 Explosive . | . . Electromagnetic . | . . Robot Hit Streak 8 | 2 8 Robot Miss Streak 4 | . 4 Penetration Max . | . . Secondary Targets 1 | . 1 Max Gunslinging Chain 1 | . 1 Shots Hit Robots 34 | 2 32 Core Hits 14 | 2 12 Critical Kills . | . . Critical Parts Destroyed 1 | . 1 Critical Strikes 1 | . 1 Smash 1 | . 1 Melee Attacks 3 | . 3 Impact 3 | . 3 Slashing . | . . Piercing . | . . Sneak Attacks . | . . Combat Hostiles . | . . Follow-up Attacks . | . . Damage Inflicted 394 | 22 372 Guns 343 | 22 321 Cannons . | . . Explosions . | . . Melee 51 | . 51 Ramming . | . . Kinetic 68 | . 68 Thermal 275 | 22 253 Explosive . | . . Electromagnetic . | . . Impact 51 | . 51 Slashing . | . . Piercing . | . . Highest Corruption . | . . Average Corruption . | . . Corruption Purged . | . . Corruption Blocked . | . . Overload Shots . | . . Overflow Damage 20 | . 20 Projectiles . | . . Explosions . | . . Melee 20 | . 20 Knockbacks . | . . Impact . | . . Kinetic . | . . Secondary . | . . Self-Inflicted Damage . | . . Shots . | . . Rammed . | . . Targets Rammed . | . . Kicked . | . . Crushed . | . . Highest Temperature 98 | 20 98 Average Temperature 28 | 15 29 Received Heat Transfer 360 | . 360 Siege Activations . | . . Martial Activations . | . . Shielding Activations . | . . Robots Disrupted . | . . Combat Hostiles . | . . Robots Corrupted 1 | . 1 Combat Hostiles 1 | . 1 Parts Fried 2 | . 2 Impact Corruptions 1 | . 1 Robots Melted . | . . Combat Hostiles . | . . Parts Melted . | . . Heat Transferred 625 | 50 575 Parts Sabotaged . | . . Parts Stolen . | . . Parts Stripped . | . . Power Chain Reactions . | . . Alert | -11 -10 ------- Run | Yrd Mat Maximum Alert Level . | . . Low Security (%) 100 | 100 100 Level 1 . | . . Level 2 . | . . Level 3 . | . . Level 4 . | . . Level 5 . | . . High Security . | . . Max Security . | . . Peak Influence 87 | 5 87 Initial . | . . Average 25 | . 31 Influence Increases 217 | 10 207 Destroy 0b10 Robot/C 120 | . 120 Destroy 0b10 Robot/NC 15 | 10 5 Destroy Leader 22 | . 22 Lose Combat Pursuer 60 | . 60 Influence Decreases 188 | 10 178 Time Decay 138 | 10 128 Lost Part 50 | . 50 Squads Dispatched 1 | . 1 Investigation . | . . Extermination . | . . Reinforcement 1 | . 1 Assault . | . . Garrison . | . . Intercept . | . . Searches Triggered . | . . Construction Impeded . | . . Haulers Reinforced . | . . Active Scanning Responses . | . . Cargo Convoy Interrupts . | . . Stealth | -11 -10 --------- Run | Yrd Mat Distress Signals . | . . Communications Jammed . | . . Distress Signals . | . . Times Spotted 14 | . 14 Peak Tracking Total 4 | . 4 Tactical Retreats 2 | . 2 Traps | -11 -10 ------- Run | Yrd Mat Traps Triggered . | . . Indirectly . | . . Trap Hack Attempts . | . . Triggered . | . . Disarmed . | . . Reprogrammed . | . . Reused . | . . Traps Extracted . | . . Installed . | . . Triggered . | . . Machines | -11 -10 ---------- Run | Yrd Mat Machines Disabled . | . . Max in Single Turn . | . . Machines Repaired . | . . Machines Dismantled . | . . Machines Sabotaged . | . . Overloaded Fab Kills . | . . Hacking | -11 -10 --------- Run | Yrd Mat Machines Accessed 1 | . 1 Terminals 1 | . 1 Fabricators . | . . Repair Stations . | . . Recycling Units . | . . Scanalyzers . | . . Garrison Access . | . . Total Hacks 1 | . 1 Successful . | . . Failed 1 | . 1 Catastrophic . | . . Database Lockouts . | . . Manual . | . . Terminals 1 | . 1 Fabricators . | . . Repair Stations . | . . Recycling Units . | . . Scanalyzers . | . . Garrison Access . | . . Terminal Hacks . | . . Fabricator Hacks . | . . Repair Station Hacks . | . . Recycling Unit Hacks . | . . Scanalyzer . | . . Garrison Access Hacks . | . . Unauthorized Hacks . | . . Terminals . | . . Fabricators . | . . Repair Stations . | . . Recycling Units . | . . Scanalyzers . | . . Garrison Access . | . . Data Cores Recovered . | . . Used . | . . Hacking Detections 1 | . 1 Full Trace Events . | . . Feedback Events . | . . Feedback Blocked . | . . Robot Schematics Acquired . | . . Robots Built . | . . Authchips . | . . Time . | . . Total Robot Build Rating . | . . Part Schematics Acquired . | . . Parts Built . | . . Authchips . | . . Time . | . . Total Part Build Rating . | . . Parts Repaired . | . . Time . | . . Parts Recycled . | . . Recycled Matter . | . . Retrieved Matter . | . . Retrieved Components . | . . Parts Scanalyzed . | . . Part Schematics Acquired . | . . Parts Damaged . | . . Bothacking | -11 -10 ------------ Run | Yrd Mat Used RIF Installer . | . . Robots Hacked . | . . Non-combat . | . . Combat . | . . Robot Hacks Applied . | . . Relay Couplers Released . | . . Fabnet Peak Effective % . | . . Robots Rewired . | . . Allies Hacked . | . . Hacks Repelled . | . . Allies | -11 -10 -------- Run | Yrd Mat Total Allies . | . . Largest Group . | . . Highest-Rated Group . | . . Highest-Rated Ally . | . . Total Orders . | . . Ally Attacks . | . . Total Damage . | . . Kills . | . . Allies Corrupted . | . . Allies Melted . | . . Intel | -11 -10 ------- Run | Yrd Mat Active Infowar (turns) 409 | 2 407 Seismic 409 | 2 407 Robot Analysis Total . | . . Derelict Logs Recovered . | . . Drone Launches . | . . Drone Recoveries . | . . Exploration | -11 -10 ------------- Run | Yrd Mat Turns Passed 494 | 87 407 Spaces Moved 300 | 62 238 Core 8 | 6 2 Treads . | . . Legs 292 | 56 236 Wheels . | . . Hover . | . . Flight . | . . Fastest Speed 50 | 50 120 Average Speed 118 | 113 120 Slowest Speed 150 | 120 150 Overloaded Moves . | . . Propulsion Burnouts . | . . Robots Hopped . | . . Potential Cave-ins . | . . Cave-ins Triggered . | . . Exploration Rate (%) 21 | 5 38 Regions Visited 1 Branch Regions . Pre-discovered Areas . | . . Known Exits Taken . | . . Unknown Exits Taken 1 | 1 . Scrap Searched . | . . Spaces Dug . | . . Terrain Destroyed . | . . Melee . | . . Projectile . | . . AOE . | . . Terrain Rammed . | . . Walls Destroyed . | . . Machines Disabled . | . . Actions | -11 -10 --------- Run | Yrd Mat Total 381 | 72 309 Wait 34 | . 34 Move 299 | 61 238 Hop . | . . Pick Up 6 | 2 4 Fast Attach 6 | 6 . Attach 2 | 1 1 Detach . | . . Swap 1 | . 1 Drop . | . . Fire 30 | 2 28 Melee 3 | . 3 Ram . | . . Kick . | . . Crush . | . . Escape Stasis . | . . Rewire . | . . Trap . | . . Miscellaneous . | . . Route ------- -11/Scrapyard -10/Materials (discovered 1 exit: [*Mat]) History --------- Turn | Location | Event 6 | -11/Scrapyard | Discovered new exit (range 14) 88 | -11/Scrapyard | Entered Materials 316 | -10/Materials | Build established: Mutant 319 | -10/Materials | Discovered new exit (range 13) 452 | -10/Materials | Lost 3 parts (1p1n1w) 465 | -10/Materials | Core integrity fell below 50% 484 | -10/Materials | Core integrity fell below 20% 495 | -10/Materials | Destroyed by G-47 Trooper with Particle Gun Last Messages --------------- R-06 Scavenger collects Datajack. Sml. Laser destroyed. R-06 Scavenger collects Datajack. R-06 Scavenger inserts Aluminum Leg into recycling unit. R-06 Scavenger inserts Datajack into recycling unit. Critical hit (Burn: +37). K-01 Serf collects debris. K-01 Serf cleans the Repair Station. Acquired Hammer. G-34 Mercenary destroyed. K-01 Serf collects debris. Aluminum Leg destroyed. Sml. Laser destroyed. R-06 Scavenger collects Ion Engine. G-34 Mercenary suffers critical hit (Smash). Destroyed Aluminum Leg. G-34 Mercenary system corrupted by crushing effect. G-34 Mercenary system terminally corrupted. Heat Sink fried. Sml. Laser fried. Map ----- +----------------------------------------------------+ | ?????????????????????????????????????????????????? | | ?????????????????????????????????????????????????? | | ?????????????????????????????????????????????????? | | ?????????????????????????????????????????????????? | | ????????????????????????????????????????? ???????? | | ????????????????????????????????????????? ???""" | | ?????????????????????????????????????????? """" | | ??????????????????????????????????????????? """" | | ????????????????????????????????????????????? """ | | ??????????????????????????????????? ?????????? | | ??????????????????????????????????? ???????????? | | ??????????????????????????????????? ???????????### | | ??????????????????????????????????? ???????????? # | | ??????????????????????????????????? ?????????????+ | | ??????????????????? ????????????? ?????????????# | | ??????????????????? ????????????? ?????????????# | | ??????????????????? ????????????# #????????????# | | ??????????????????? ????????????# #????????????# | | ??????????????????? ????????????# #????????????# | | ??????????????????? ???????#????# #????????????# | | ??????????????????? ?????? #????# #??????####### | | ??????????????????? ????? #????# #??????# | | ???????????????????# #??###+####??# #??????# | | ???????????????????# #??# w #### ######## | | ???????????????????# #??# [grr | | ???????????????????# #??#@ """ ################## | | ???????????????????# #??#[%=R" #????????????????## | | ???????????????????# #??# """ #??????????????#### | | ???????????????????# #??#! #??????????????# | | ???????????????????# #??####################### " | | ???????????????????# #????# #[ = + " | | ???????????????????# #????# T #=######### " | | ???????????????????# #????# # ######??# | | ???????????????????# #????# """"" # # #??# | | ??????????????????##+####?# """"" # # ####### | | ??????????????????# #?# """"" # # # + | | ??????????????????# #?# # + #*!! # | | ??????????????????# #?# # # #????# | | ??????????????????# #######+##### # #????# | | ??????????????????# # + #????# | | ??????????????????# + # #????+ | | ??????????????????# # # #????# | | ??????????????????# # #### ##+#+######????# | | ??????????????????# # #??# # #???????# | | ??????????????????# + #??# # #???????## | | ??????????????????# # #??# # #????????? | | ??????????????????# # #??# # """ #????????? | | ??????????????????####### #??# # """ #????????? | | ????????????????????????# #??# # """ #????????? | | ????????????????????????# #??############????????? | +----------------------------------------------------+ Best States ------------- Heat Dissipation 25 Energy Generation 10 Energy Capacity 125 Matter Stores 300 Matter Capacity 300 Sight Range 16 Terrain Scan Density 10 Evasion (%) 55 Item Schematics ----------------- None Robot Schematics ------------------ None Fabricated ------------ Nothing Repaired ---------- Nothing Alien Tech Used ----------------- None Achievements -------------- None Challenges ------------ None Game ------ Seed ScatterLatentManipulator Manual? 0 Play Time 00:07:16 Cumulative 4.9 hours Start 2025.06.03 @ 23:08:43 End 2025.06.03 @ 23:14:51 Sessions 1 Manual Loads 0 Difficulty Rogue Special Mode None Game No. 8 Rogue 8 Adventurer 0 Explorer 0 Win Type - Total 0 Types 0/0/0/0/0/0/0/0/0/0 Lore% 8 Gallery% 6 Achievement% 10 Wizard Run 0 Options --------- Layout 0 ASCII 0 Keyboard 0 Movement Mouse Keybinds 0 Fullscreen 1 Font 18/SmallcapsGlow Map View 76x50 Zoom Use 0% Tactical HUD 0 Map Filters NONE Filters NONE Steam 1 RUN: 47a6c88d-ea57-4266-9ca7-8be5e1870de2